bitfinex/quotes_ETHUSD_20250328
["timestamp","ask_amount","ask_price","bid_price","bid_amount"]
[1743132795083,4.26989589,2001.1,2000.5,0.98081428]
[1743132795084,4.26989589,2001.1,2000.5,2.60560571]
[1743132795302,0.15847612,2000.6,2000.5,0.98081428]
[1743132795475,3.45259589,2000.9,2000.5,0.98081428]
[1743132795680,0.15847612,2000.6,2000.5,0.98081428]
[1743132795901,3.45259589,2000.9,2000.3,15.2671]
[1743132796204,0.15847612,2000.8,2000.3,15.2671]
[1743132796376,0.15847612,2000.8,2000.4,1.52671]
[1743132796902,0.15847612,2000.8,2000.4,1.57669409]
[1743132797283,3.45259589,2000.9,2000.4,2.58677082]
[1743132797590,0.15847612,2000.8,2000.4,2.58677082]
[1743132797766,3.45259589,2000.9,2000.4,2.58677082]
[1743132797965,0.15847612,2000.8,2000.4,2.58677082]
[1743132798188,3.45259589,2000.9,2000.5,1.78538708]
[1743132798399,0.15847612,2000.8,2000.5,1.78538708]
[1743132798598,3.45259589,2000.9,2000.5,1.78538708]
[1743132798806,0.15847612,2000.8,2000.4,1.01007673]
[1743132798982,3.45259589,2000.9,2000.4,1.01007673]
[1743132799300,0.15847612,2000.8,2000.4,1.01007673]
[1743132799602,3.45259589,2000.9,2000.4,1.01007673]
[1743132799801,0.15847612,2000.8,2000.4,1.01007673]
[1743132800005,3.45259589,2000.9,2000.4,2.6377944]
[1743132800207,0.15847612,2000.8,2000.4,2.6377944]
[1743132800376,3.45259589,2000.9,2000.4,2.6377944]
[1743132800576,0.16182045,2000.8,2000.4,2.6377944]
[1743132800905,3.45259589,2000.9,2000.4,2.6377944]
[1743132801200,0.16182045,2000.8,2000.4,2.6377944]
[1743132801409,3.45259589,2000.9,2000.5,1.79048944]
[1743132801610,0.16182045,2000.8,2000.4,1.06006085]
[1743132801781,0.781,2001.0,2000.5,0.7771]
[1743132801975,0.16182045,2000.9,2000.5,0.7771]
[1743132804080,0.16182045,2000.9,2000.7,0.753]
[1743132804308,0.16182045,2000.9,2000.7,0.80297559]
[1743132804604,3.8268,2001.3,2000.8,0.42555715]
[1743132804803,6.01,2001.5,2000.9,0.80297522]
[1743132804804,0.8268,2001.5,2000.9,0.80297522]
[1743132805009,33.554,2001.7,2001.0,0.55]
[1743132805010,33.11539589,2001.7,2001.0,0.55]
[1743132805203,3.0,2001.6,2001.1,0.04996674]
[1743132805405,3.0,2001.6,2001.0,0.55]
[1743132806010,3.0,2001.6,2001.0,1.56231841]
[1743132807177,3.0,2001.6,2001.2,0.7751]
[1743132809115,3.0,2001.6,2001.2,1.01638752]
[1743132809891,0.7654,2001.4,2001.0,0.7751]
[1743132811510,0.7654,2001.4,2001.1,1.02319481]
[1743132813502,3.45259589,2001.5,2001.1,1.02319481]
[1743132813703,0.16271192,2001.3,2001.1,1.02319481]
[1743132813891,3.45259589,2001.5,2001.1,1.02319481]
[1743132814091,0.16271192,2001.2,2001.1,1.02319481]
[1743132814327,3.45259589,2001.5,2001.1,1.02319481]
[1743132814500,0.16271192,2001.2,2001.1,1.02319481]
[1743132814704,3.45259589,2001.5,2001.1,1.02319481]
[1743132814896,0.16516284,2001.2,2001.1,1.02319481]
[1743132815090,7.21039589,2001.6,2001.1,1.02319481]
[1743132815288,0.16516284,2001.2,2001.1,1.02319481]
[1743132815492,7.21039589,2001.6,2001.1,1.02319481]
[1743132816011,0.16516284,2001.5,2001.1,1.02319481]
[1743132818425,0.16516284,2001.5,2001.2,0.7567]
[1743132818630,3.05,2001.9,2001.2,0.7567]
[1743132818825,0.16756892,2001.8,2001.2,0.7567]
[1743132819117,3.0,2001.7,2001.2,0.7567]
[1743132819293,3.0,2001.7,2001.3,0.64958948]
[1743132819695,0.16756892,2001.6,2001.3,0.64958948]
[1743132820095,3.0,2001.7,2001.3,0.64958948]
[1743132820297,0.16756892,2001.5,2001.3,0.64958948]
[1743132820495,3.0,2001.7,2001.3,0.64958948]
[1743132820719,0.16756892,2001.4,2001.3,1.19958948]
[1743132820911,3.0,2001.7,2001.3,1.19958948]
[1743132821122,0.16756892,2001.4,2001.3,1.19958948]
[1743132821622,3.0,2001.7,2001.3,1.19958948]
[1743132821827,0.16756892,2001.6,2001.3,1.19958948]
[1743132822132,3.0,2001.7,2001.3,1.19958948]
[1743132822604,0.16756892,2001.6,2001.3,1.19958948]
[1743132822805,3.0,2001.7,2001.3,1.19958948]
[1743132823104,0.16756892,2001.6,2001.3,1.19958948]
[1743132823513,3.0,2001.7,2001.3,1.19958948]
[1743132823698,0.16756892,2001.5,2001.3,1.19958948]
[1743132823903,3.0,2001.7,2001.3,1.19958948]
[1743132824401,0.16756892,2001.6,2001.3,1.19958948]
[1743132824622,0.05,2001.9,2001.5,0.7916]
[1743132824830,0.16756892,2001.8,2001.5,0.7916]
[1743132825842,0.16756892,2001.8,2001.3,1.44118948]
[1743132826053,3.62016481,2001.8,2001.3,1.44118948]
[1743132826851,3.62016481,2001.8,2001.5,1.00836131]
[1743132830642,3.62016481,2001.8,2001.3,0.7916]
[1743132830843,3.62016481,2001.8,2001.3,1.39726]
[1743132831420,3.62016481,2001.8,2001.3,1.44722015]
[1743132832144,3.62016481,2001.8,2001.5,1.01558707]
[1743132834112,0.16756892,2001.8,2001.6,0.8251]
[1743132834514,0.16756892,2001.8,2001.5,1.01558707]
[1743132834715,3.62016481,2001.8,2001.5,1.01558707]
[1743132835928,3.62016481,2001.8,2001.4,0.8251]
[1743132840549,3.62016481,2001.8,2001.2,5.265]
[1743132840550,3.45259589,2001.6,2001.0,0.7893]
[1743132840722,3.45259589,2001.4,2001.0,0.7893]
[1743132840923,3.16894976,2001.5,2001.0,0.83926838]
[1743132841119,3.0,2001.5,2001.1,0.55532684]
[1743132841331,0.16970695,2001.4,2001.1,0.55532684]
[1743132841732,0.16970695,2001.4,2001.1,1.54909762]
[1743132842432,3.62230284,2001.4,2001.1,0.99377078]
[1743132846259,0.16970695,2001.4,2001.1,0.99377078]
[1743132847156,0.94990695,2001.4,2001.0,0.7893]
[1743132847359,3.45259589,2001.2,2000.8,0.7868]
[1743132847926,0.16970695,2001.1,2000.8,0.7868]
[1743132848148,3.45259589,2001.2,2000.8,0.7868]
[1743132848456,3.45259589,2001.0,2000.6,1.00092576]
[1743132848864,3.45259589,2000.8,2000.6,1.00092576]
[1743132849155,3.45259589,2000.8,2000.4,0.7868]
[1743132849530,4.22589589,2000.8,2000.4,1.81264632]
[1743132850543,3.45259589,2000.8,2000.4,1.81264632]
[1743132851558,3.45259589,2001.0,2000.5,0.59998415]
[1743132851879,3.45259589,2001.0,2000.6,0.7852]
[1743132851880,0.16899431,2000.9,2000.6,0.7852]
[1743132852262,0.16899431,2000.9,2000.6,0.83517769]
[1743132852660,7.22589589,2001.2,2000.6,0.83517769]
[1743132852881,0.16899431,2000.8,2000.6,1.87145899]
[1743132853070,7.22589589,2001.2,2000.6,1.87145899]
[1743132853271,7.22589589,2001.2,2000.6,1.92143715]
[1743132853487,0.16899431,2001.1,2000.6,1.92143715]
[1743132853654,0.16899431,2001.1,2000.6,1.92143709]
[1743132855088,0.16899431,2001.1,2000.6,1.87145899]
[1743132855985,0.16899431,2001.1,2000.6,1.92143713]
[1743132856154,0.16899431,2001.1,2000.6,1.87145899]
[1743132857454,0.16899431,2001.1,2000.6,0.7852]
[1743132858385,0.16899431,2001.1,2000.7,0.55]
[1743132858595,0.16899431,2001.1,2000.8,0.7669]
[1743132858882,3.0,2001.3,2000.8,0.7669]
[1743132859086,0.16543041,2001.0,2000.8,0.7669]
[1743132859283,4.27349589,2001.4,2000.8,1.74369659]
[1743132859284,3.45259589,2001.2,2000.8,1.74369659]
[1743132859487,0.16543041,2000.9,2000.6,0.55]
[1743132859681,0.8209,2001.1,2000.6,1.3169]
[1743132859889,0.16543041,2000.8,2000.6,1.3169]
[1743132860088,3.45259589,2001.0,2000.6,1.3169]
[1743132860266,3.45259589,2001.0,2000.6,2.02267463]
[1743132860466,0.16627698,2000.9,2000.6,2.02267463]
[1743132860965,0.8209,2001.1,2000.6,2.02267463]
[1743132861174,0.16627698,2000.8,2000.6,2.02267463]
[1743132861369,0.8209,2001.1,2000.6,2.02267463]
[1743132861673,0.16627698,2001.0,2000.6,2.02267463]
[1743132861873,0.16627698,2001.0,2000.7,0.67376746]
[1743132864557,3.45259589,2001.2,2000.7,0.67376746]
[1743132864758,0.16627698,2000.9,2000.6,2.02267463]
[1743132864958,3.45259589,2001.2,2000.6,2.07265253]
[1743132865161,0.16627698,2000.8,2000.6,2.07265253]
[1743132865359,3.45259589,2001.2,2000.6,2.07265253]
[1743132865585,3.45259589,2001.2,2000.6,2.07265254]
[1743132865779,0.16609873,2001.1,2000.6,2.07265254]
[1743132865974,0.16609873,2001.1,2000.7,0.67876525]
[1743132867192,0.16609873,2001.1,2000.8,0.8113]
[1743132867491,3.0,2001.3,2000.8,0.8113]
[1743132867693,0.16551951,2001.0,2000.8,0.8113]
[1743132867987,3.0,2001.3,2000.8,0.8113]
[1743132868292,3.0,2001.3,2000.8,1.3613]
[1743132868481,0.16551951,2001.2,2000.8,1.3613]
[1743132868700,0.16551951,2001.2,2000.8,2.13572699]
[1743132868885,0.16551951,2001.2,2000.8,16.63572699]
[1743132869996,3.0,2001.3,2000.9,0.98330788]
[1743132870198,0.16551951,2001.1,2000.9,0.98330788]
[1743132870399,3.0,2001.3,2000.9,0.98330788]
[1743132870698,0.16551951,2001.2,2000.9,0.98330788]
[1743132870994,3.6181154,2001.2,2000.9,0.98330788]
[1743132871591,4.3821154,2001.2,2000.9,0.98330788]
[1743132871759,3.6181154,2001.2,2000.9,0.98330788]
[1743132872390,3.6181154,2001.2,2000.9,2.68564269]
[1743132874263,0.16551951,2001.2,2000.9,2.68564269]
[1743132875084,0.16551951,2001.2,2000.9,0.98330788]
[1743132877419,0.16351951,2001.2,2000.9,0.98330788]
[1743132882627,0.16351951,2001.2,2000.8,0.8113]
[1743132883120,0.16351951,2001.2,2001.1,1.3315]
[1743132883289,3.7996,2001.6,2001.1,15.8315]
[1743132883489,0.15244108,2001.2,2001.1,17.91442]
[1743132883798,3.7996,2001.6,2001.1,17.91442]
[1743132883994,0.7996,2001.6,2001.2,0.55]
[1743132884199,0.15244108,2001.5,2001.4,0.55]
[1743132884410,0.15244108,2001.5,2001.4,6.96583559]
[1743132884640,0.05,2001.9,2001.6,0.55]
[1743132884827,0.05,2001.9,2001.8,0.55]
[1743132885226,0.05,2001.9,2001.8,0.59994767]
[1743132885542,0.20364572,2001.9,2001.8,0.59994767]
[1743132885839,0.20364572,2001.9,2001.8,2.05609903]
[1743132885988,0.05,2001.9,2001.8,2.05609903]
[1743132886193,0.20364572,2001.9,2001.8,2.85519903]
[1743132886494,0.05,2001.9,2001.8,2.80525136]
[1743132886941,0.05,2001.9,2001.8,17.3551955]
[1743132887142,0.05,2001.9,2001.8,17.30525136]
[1743132887339,0.05,2001.9,2001.8,22.30075136]
[1743132887627,0.05,2001.9,2001.8,17.30525136]
[1743132889527,0.05,2001.9,2001.8,2.80525136]
[1743132889706,0.05,2001.9,2001.8,7.85069558]
[1743132890625,0.05,2001.9,2001.8,3.80744286]
[1743132891327,0.05,2001.9,2001.8,3.85738982]
[1743132893335,0.05,2001.9,2001.8,12.30548571]
[1743132893494,0.05,2001.9,2001.8,12.25553875]
[1743132893699,0.05,2001.9,2001.8,7.26003875]
[1743132895115,0.05,2001.9,2001.8,3.80744286]
[1743132896147,0.05,2001.9,2001.8,8.80294286]
[1743132896549,0.05,2001.9,2001.8,12.30548059]
[1743132896710,0.05,2001.9,2001.8,12.25553875]
[1743132898211,0.05,2001.9,2001.8,26.75553875]
[1743132901430,0.05,2001.9,2001.8,29.75553875]
[1743132901934,0.05,2001.9,2001.8,21.76003875]
[1743132903338,0.05,2001.9,2001.8,26.75553875]
[1743132903633,0.05,2001.9,2001.8,21.76003875]
[1743132905737,0.05,2001.9,2001.8,26.75553875]
[1743132906844,0.05,2001.9,2001.8,31.46653875]
[1743132908232,0.05,2001.9,2001.8,34.46653875]
[1743132909515,0.05,2001.9,2001.8,31.01394286]
[1743132915925,0.05,2001.9,2001.8,31.01294286]
[1743132919133,0.05,2001.9,2001.8,26.01744286]
[1743132919374,0.05,2001.9,2001.8,21.30744286]
[1743132919577,0.05,2001.9,2001.8,20.50834286]
[1743132921035,0.05,2001.9,2001.8,17.50834286]
[1743132921286,0.05,2001.9,2001.8,15.5021915]
[1743132921287,0.8191,2001.9,2001.8,15.5021915]
[1743132921568,0.98099593,2001.9,2001.7,6.03]
[1743132921736,0.8191,2001.9,2001.7,6.03]
[1743132922067,0.8191,2001.9,2001.7,20.53]
[1743132922367,0.8191,2001.9,2001.7,21.52802934]
[1743132923471,0.8191,2001.9,2001.7,23.73583227]
[1743132925105,0.05,2001.9,2001.8,0.55]
[1743132926181,0.05,2001.9,2001.8,5.5954469]
[1743132926366,0.05,2001.9,2001.8,27.8054469]
[1743132926567,0.05,2001.9,2001.8,28.5796]
[1743132926871,0.05,2001.9,2001.8,32.88177652]
[1743132931200,0.05,2001.9,2001.8,38.91177652]
[1743132931400,0.7723,2002.7,2002.4,0.55]
[1743132931569,0.7723,2002.7,2002.3,10.53049]
[1743132931899,0.7723,2002.7,2002.5,0.55]
[1743132932370,0.7723,2002.7,2002.5,0.59992933]
[1743132933301,0.7723,2002.7,2002.5,0.55]
[1743132934407,0.7723,2002.7,2001.9,5.77283]
[1743132934408,0.7821,2002.5,2001.9,5.77283]
[1743132934574,0.7821,2002.5,2002.2,0.99999499]
[1743132934773,0.16492647,2002.4,2002.2,0.99999499]
[1743132936405,4.23469589,2002.5,2002.2,0.99999499]
[1743132936601,4.23469589,2002.5,2002.1,0.04993934]
[1743132936807,0.7718,2002.4,2002.1,1.54577965]
[1743132937316,0.7804,2002.2,2001.5,20.32822]
[1743132937479,4.23299589,2002.1,2002.0,0.98707896]
[1743132937897,4.39676377,2002.1,2002.0,0.98707896]
[1743132938688,4.23299589,2002.1,2002.0,0.98707896]
[1743132940510,0.7804,2002.0,2001.5,0.975078]
[1743132940727,4.23299589,2001.6,2001.4,7.25430166]
[1743132941024,0.16202943,2001.5,2001.4,7.25430166]
[1743132941514,4.23299589,2001.6,2001.4,7.25430166]
[1743132941824,0.16202943,2001.5,2001.4,7.25430166]
[1743132941980,0.8115,2001.4,2000.9,4.709]
[1743132942180,4.26409589,2001.4,2001.0,0.55]
[1743132942379,0.15708058,2001.3,2001.0,0.55]
[1743132942605,4.26409589,2001.4,2001.0,0.55]
[1743132942807,0.15708058,2001.2,2001.0,0.55]
[1743132943008,4.26409589,2001.4,2000.9,15.48947915]
[1743132943417,3.45259589,2001.2,2000.9,15.48947915]
[1743132943908,3.45259589,2001.2,2000.9,0.98947915]
[1743132943909,0.796,2001.1,2000.9,0.98947915]
[1743132944087,0.796,2001.1,2000.7,6.03]
[1743132944292,0.796,2001.1,2000.7,6.5409685]
[1743132944516,0.796,2001.1,2000.8,16.02675441]
[1743132944880,0.796,2001.1,2000.8,1.52675441]
[1743132945289,0.796,2001.1,2000.8,0.97675441]
[1743132946825,0.15578702,2001.0,2000.8,0.97675441]
[1743132948910,0.15578702,2001.0,2000.9,0.55]
[1743132949231,3.7515,2001.3,2000.9,0.5999759]
[1743132949602,0.15578702,2001.2,2000.9,0.55]
[1743132950214,0.15578702,2001.2,2001.0,14.5]
[1743132950912,3.60838291,2001.2,2001.0,14.5]
[1743132951352,3.45259589,2001.2,2001.0,14.5]
[1743132951723,3.45259589,2001.2,2000.9,0.55]
[1743132952113,3.45259589,2001.2,2000.9,15.05]
[1743132952114,0.15578702,2001.1,2000.9,15.05]
[1743132952543,3.45259589,2001.2,2000.9,15.05]
[1743132953138,3.45259589,2001.2,2000.9,0.55]
[1743132953542,3.45259589,2001.2,2000.9,15.05]
[1743132953743,0.15578702,2001.1,2000.9,15.05]
[1743132953946,3.45259589,2001.2,2000.9,0.55]
[1743132954847,3.7515,2001.3,2000.9,0.55]
[1743132962051,3.45259589,2001.2,2000.9,0.55]
[1743132962554,0.15395802,2001.1,2000.9,0.55]
[1743132966257,0.15395802,2001.1,2001.0,1.3233]
[1743132966456,3.0,2001.3,2001.0,1.3233]
[1743132966758,3.45259589,2001.4,2001.0,1.3233]
[1743132966759,0.15395802,2001.1,2001.0,1.3233]
[1743132966963,3.45259589,2001.4,2001.0,2.05309944]
[1743132967266,0.7783,2001.5,2001.0,2.05309944]
[1743132967267,0.7783,2001.5,2001.1,0.55]
[1743132967428,4.22209589,2001.7,2001.1,0.59996949]
[1743132967631,0.15395802,2001.4,2001.1,0.59996949]
[1743132967831,3.0,2001.6,2001.1,0.59996949]
[1743132968031,0.15431497,2001.3,2001.1,2.20799644]
[1743132968243,3.0,2001.6,2001.1,2.20799644]
[1743132968445,0.15431497,2001.2,2001.1,2.20799644]
[1743132968657,3.0,2001.6,2001.1,2.20799644]
[1743132968960,3.0,2001.6,2001.1,2.15802695]
[1743132969153,0.15431497,2001.5,2001.1,2.15802695]
[1743132969350,3.45259589,2001.3,2000.8,6.51925441]
[1743132969551,3.45259589,2001.3,2000.9,0.04997038]
[1743132969741,0.15507332,2001.2,2001.0,0.55]
[1743132969942,0.15507332,2001.2,2000.9,0.04997038]
[1743132970268,3.45259589,2001.3,2000.9,1.15673748]
[1743132970566,0.7695,2001.4,2000.9,1.15673748]
[1743132970567,0.15507332,2001.1,2001.0,0.55]
[1743132970734,0.7695,2001.4,2001.0,0.55]
[1743132971062,0.15507332,2001.3,2001.0,0.55]
[1743132971360,0.7695,2001.4,2001.0,1.87738321]
[1743132971548,0.15507332,2001.2,2001.0,1.87738321]
[1743132971953,0.7695,2001.4,2001.0,1.87738321]
[1743132972350,0.15507332,2001.3,2001.0,1.87738321]
[1743132972732,0.7695,2001.4,2001.0,1.87738321]
[1743132972935,0.15507332,2001.2,2001.0,1.87738321]
[1743132973132,0.7695,2001.4,2001.1,0.30840909]
[1743132973335,3.45259589,2001.6,2001.1,0.35837918]
[1743132973538,0.15507332,2001.3,2001.2,0.55]
[1743132973875,0.15458263,2001.3,2001.2,0.55]
[1743132974070,3.45259589,2001.6,2001.2,0.55]
[1743132974269,0.15458263,2001.3,2001.2,0.55]
[1743132974562,3.45259589,2001.6,2001.2,0.85045624]
[1743132974738,0.15458263,2001.3,2001.2,0.55]
[1743132974938,3.45259589,2001.6,2001.2,0.55]
[1743132975173,0.15458263,2001.3,2001.2,0.55]
[1743132975384,3.45259589,2001.6,2001.2,0.55]
[1743132975551,0.15458263,2001.3,2001.2,0.55]
[1743132975747,0.7931,2001.7,2001.2,1.35020524]
[1743132975960,3.45259589,2001.8,2001.4,0.7688]
[1743132976166,3.45259589,2001.8,2001.3,0.04996608]
[1743132976465,3.45259589,2001.6,2001.2,0.55]
[1743132976775,3.45259589,2001.6,2001.2,0.59996364]
[1743132977684,3.45259589,2001.6,2001.2,0.55]
[1743132978283,3.45259589,2001.4,2001.1,1.0110341]
[1743132978758,0.7931,2001.5,2001.2,0.55]
[1743132978956,0.7931,2001.5,2001.2,1.2877269]
[1743132979158,0.15565327,2001.4,2001.2,1.2877269]
[1743132979680,0.15565327,2001.4,2001.2,0.55]
[1743132981085,0.15565327,2001.4,2001.1,1.0110341]
[1743132981286,0.7931,2001.5,2001.2,0.55]
[1743132981601,3.60824916,2001.4,2001.0,0.7688]
[1743132981752,3.60824916,2001.4,2000.8,6.14197102]
[1743132981954,3.60824916,2001.4,2000.8,5.59197102]
[1743132982688,3.60824916,2001.4,2001.0,0.99452047]
[1743132983389,3.45259589,2001.2,2000.9,0.55]
[1743132983951,0.15565327,2001.1,2000.9,0.55]
[1743132985589,0.15565327,2001.1,2000.9,1.54552627]
[1743132986382,0.7924,2001.3,2000.9,1.54552627]
[1743132986584,0.15565327,2001.0,2000.9,2.78778919]
[1743132986773,3.45259589,2001.4,2000.9,2.78778919]
[1743132987091,0.15565327,2001.3,2000.9,2.78778919]
[1743132987284,3.45259589,2001.4,2000.9,2.78778919]
[1743132987594,0.15565327,2001.3,2000.9,1.54552627]
[1743132987994,3.0,2001.4,2001.0,0.04997286]
[1743132988491,0.15565327,2001.3,2000.9,1.54552627]
[1743132988715,3.0,2001.4,2001.0,0.0499699]
[1743132988897,0.15565327,2001.2,2001.0,14.5499699]
[1743132989062,3.0,2001.4,2001.1,1.60954962]
[1743132989262,3.0,2001.4,2001.0,14.5]
[1743132989263,0.15565327,2001.3,2001.0,14.5]
[1743132989463,3.0,2001.4,2001.0,14.5]
[1743132989692,0.15565327,2001.3,2001.0,14.5]
[1743132989895,3.0,2001.4,2001.0,14.5]
[1743132990059,0.15565327,2001.3,2001.0,14.5]
[1743132990265,3.0,2001.6,2001.2,0.55]
[1743132990463,0.15565327,2001.5,2001.2,0.55]
[1743132990996,0.15565327,2001.5,2001.3,0.8303]
[1743132991294,39.09209589,2002.1,2001.5,0.808]
[1743132991501,4.26309589,2002.1,2001.6,0.59995835]
[1743132991815,3.0,2002.0,2001.8,0.55]
[1743132993369,0.38458169,2002.6,2001.8,0.55]
[1743132993370,4.27169589,2002.5,2002.0,0.55]
[1743132993583,0.8191,2002.5,2002.0,0.59994736]
[1743132993767,0.15386881,2002.4,2002.0,1.7391381]
[1743132994371,0.15386881,2002.4,2002.0,1.68919074]
[1743132995168,3.6064647,2002.4,2002.0,1.68919074]
[1743132996413,0.15386881,2002.4,2002.1,0.7611]
[1743132996610,0.15386881,2002.4,2002.2,0.55]
[1743132996901,0.15386881,2002.3,2002.2,0.55]
[1743132997106,3.45259589,2002.6,2002.2,1.29950019]
[1743132997313,0.15386881,2002.5,2002.2,1.29950019]
[1743132998603,3.8014,2002.7,2002.2,1.29950019]
[1743132998604,7.25399589,2002.7,2002.2,1.29950019]
[1743132999074,0.15386881,2002.6,2002.2,1.29950019]
[1743132999574,3.45259589,2002.5,2002.2,1.29950019]
[1743133000104,0.15386881,2002.4,2002.2,1.29950019]
[1743133002894,0.15386881,2002.4,2002.2,2.2999553]
[1743133003095,3.45259589,2002.5,2002.2,2.2999553]
[1743133003295,0.15386881,2002.4,2002.2,2.2999553]
[1743133003597,0.15386881,2002.4,2002.3,0.30610553]
[1743133007430,3.45259589,2002.5,2002.3,0.30610553]
[1743133007932,0.9105944,2002.4,2001.9,5.4813]
[1743133008138,3.45259589,2002.3,2001.9,5.4813]
[1743133009535,3.45259589,2002.3,2002.0,1.00061518]
[1743133009828,3.45259589,2002.3,2002.1,0.64819152]
[1743133012903,3.45259589,2002.3,2001.7,0.55]
[1743133013142,3.45259589,2002.1,2001.7,0.8295]
[1743133013807,4.24679589,2002.1,2001.7,0.8295]
[1743133014013,4.24679589,2002.1,2001.7,0.59995107]
[1743133014218,4.24679589,2002.1,2001.8,1.33049311]
[1743133014613,4.24679589,2002.1,2001.6,0.55]
[1743133014819,3.45259589,2001.7,2001.5,14.5]
[1743133015025,0.16229709,2001.6,2001.3,1.0166609]
[1743133015204,0.16229709,2001.6,2001.3,1.06662219]
[1743133015404,0.16078131,2001.5,2001.4,0.64455728]
[1743133015603,3.45259589,2001.5,2001.3,1.0166609]
[1743133016307,4.23669589,2001.5,2001.2,14.5]
[1743133017147,4.23669589,2001.5,2001.1,5.5343]
[1743133017308,4.23669589,2001.5,2001.1,5.58426553]
[1743133017509,4.23669589,2001.5,2001.1,20.08426553]
[1743133017755,4.23669589,2001.5,2001.2,3.51252009]
[1743133018060,3.45259589,2001.3,2001.2,2.50816355]
[1743133018258,3.45259589,2001.3,2000.8,4.708]
[1743133018259,3.6133772,2001.3,2000.8,4.708]
[1743133018412,3.6133772,2001.3,2000.9,0.04997228]
[1743133018606,3.45259589,2001.3,2000.9,15.09997228]
[1743133018909,3.45259589,2001.3,2001.0,2.28079723]
[1743133020552,0.8249,2001.2,2001.0,2.28079723]
[1743133021633,0.8249,2001.2,2000.9,14.5]
[1743133023150,3.45259589,2001.1,2000.5,0.7664]
[1743133023325,4.23359589,2000.9,2000.5,0.7664]
[1743133023530,0.15453791,2000.8,2000.5,0.7664]
[1743133023736,0.15453791,2000.8,2000.6,15.076532]
[1743133023953,4.23359589,2000.9,2000.6,16.06567771]
[1743133024317,4.23359589,2000.9,2000.6,15.076532]
[1743133026145,4.23359589,2000.9,2000.6,14.5]
[1743133026529,0.15453791,2000.8,2000.5,1.02017224]
[1743133026739,4.23359589,2000.9,2000.5,1.02017224]
[1743133026926,0.15453791,2000.8,2000.5,1.02017224]
[1743133027126,4.23359589,2000.9,2000.5,1.02017224]
[1743133027358,4.23359589,2000.9,2000.5,2.29684856]
[1743133027547,0.15453791,2000.8,2000.5,2.29684856]
[1743133027928,4.23359589,2000.9,2000.6,14.5]
[1743133028154,0.15453791,2000.8,2000.6,14.5]
[1743133028554,4.23359589,2000.9,2000.6,14.5]
[1743133028860,0.15453791,2000.8,2000.6,14.5]
[1743133029062,4.23359589,2000.9,2000.6,14.5]
[1743133029250,0.15453791,2000.8,2000.6,14.5]
[1743133029451,4.23359589,2000.9,2000.6,14.5]
[1743133029636,0.15453791,2000.8,2000.6,16.67958286]
[1743133030063,4.23359589,2000.9,2000.6,16.67958286]
[1743133030246,0.15453791,2000.8,2000.6,16.67958286]
[1743133030451,4.23359589,2000.9,2000.6,16.67958286]
[1743133030647,0.15453791,2000.8,2000.6,16.67958286]
[1743133030963,4.23359589,2000.9,2000.6,16.67958286]
[1743133031331,0.15453791,2000.8,2000.6,16.67958286]
[1743133031537,4.23359589,2000.9,2000.6,16.67958286]
[1743133031739,0.15453791,2000.8,2000.6,16.67958286]
[1743133031938,4.23359589,2000.9,2000.6,16.67958286]
[1743133032139,0.15453791,2000.8,2000.6,16.67958286]
[1743133032338,4.23359589,2000.9,2000.6,16.67958286]
[1743133032553,0.15453791,2000.8,2000.6,16.67958286]
[1743133033071,4.23359589,2000.9,2000.6,16.67958286]
[1743133033247,0.15453791,2000.8,2000.6,14.5]
[1743133033447,4.23359589,2000.9,2000.5,2.29684856]
[1743133033654,0.15203933,2000.8,2000.4,0.55]
[1743133033837,4.23359589,2000.9,2000.4,16.0278316]
[1743133034033,0.15203933,2000.8,2000.4,16.0278316]
[1743133034335,4.23359589,2000.9,2000.4,1.5278316]
[1743133034570,0.15203933,2000.8,2000.4,1.5278316]
[1743133034871,4.23359589,2000.9,2000.5,1.26708934]
[1743133035173,0.15203933,2000.8,2000.5,1.3170716]
[1743133035382,0.15203933,2000.8,2000.5,1.26708934]
[1743133035538,4.23359589,2000.9,2000.5,1.26708934]
[1743133035737,0.15203933,2000.8,2000.5,1.26708934]
[1743133035939,4.23359589,2000.9,2000.5,1.26708934]
[1743133036174,0.15203933,2000.8,2000.5,1.26708934]
[1743133036471,4.23359589,2000.9,2000.4,0.9778316]
[1743133036672,0.15203933,2000.8,2000.4,0.9778316]
[1743133036838,4.23359589,2000.9,2000.4,0.9778316]
[1743133037039,0.15203933,2000.8,2000.4,0.9778316]
[1743133037261,3.45259589,2000.7,2000.4,0.9778316]
[1743133037570,0.94183933,2000.6,2000.2,0.55]
[1743133037780,0.94183933,2000.6,2000.2,1.164995]
[1743133037977,0.7898,2000.6,2000.2,1.164995]
[1743133038480,0.15043279,2000.5,2000.2,1.164995]
[1743133039366,3.60302868,2000.5,2000.2,0.55]
[1743133039675,3.60302868,2000.5,2000.1,0.8624]
[1743133039676,3.60302868,2000.5,2000.1,0.05]
[1743133039984,3.45259589,2000.5,2000.1,0.05]
[1743133040286,3.45259589,2000.5,2000.2,0.984693]
[1743133040600,3.45259589,2000.3,2000.1,0.05]
[1743133040951,0.8243,2000.2,2000.1,0.05]
[1743133041282,0.97388466,2000.2,2000.1,0.05]
[1743133041983,0.95358466,2000.2,2000.1,0.05]
[1743133044364,0.14958466,2000.2,2000.1,0.05]
[1743133045694,4.22669589,2000.5,2000.1,2.18753323]
[1743133045854,0.1431548,2000.4,2000.1,2.18753323]
[1743133047162,0.1431548,2000.4,2000.1,7.18717323]
[1743133047358,0.1431548,2000.4,2000.1,12.18674323]
[1743133047558,4.20789589,2000.7,2000.1,7.18710323]
[1743133047793,0.1432888,2000.3,2000.2,0.80102032]
[1743133048091,4.20789589,2000.7,2000.2,0.80102032]
[1743133048294,0.1432888,2000.6,2000.2,0.80102032]
[1743133050189,3.45259589,2000.5,2000.2,0.80102032]
[1743133050375,3.45259589,2000.5,2000.1,0.05]
[1743133050573,0.8205,2000.4,2000.1,0.05]
[1743133050779,0.9637888,2000.4,2000.1,0.05]
[1743133051665,0.1432888,2000.4,2000.1,0.05]
[1743133051885,0.1432888,2000.4,2000.1,2.71873069]
[1743133055205,4.21459589,2000.3,2000.1,0.05]
[1743133055590,0.14346746,2000.2,2000.1,0.05]
[1743133060729,7.26569589,2000.5,2000.1,0.05]
[1743133060887,0.14319946,2000.4,2000.1,0.05]
[1743133069129,3.45259589,2000.3,2000.1,0.05]